Cogmind - Beta 14 @@@ ROGUE MODE // 2024.09.01 @ 04:29:10 Player: MOPO3 Result: Self-destructed Performance ------------- Evolutions (1) 500 Regions Visited (2) 400 Robots Destroyed (7) 35 Value Destroyed (154) 154 Prototype IDs (0) 0 Alien Tech Used (0) 0 Bonus (0) 0 TOTAL SCORE: 1089 Bonus ------- None Cogmind --------- Core Integrity 294/400 Matter 232/300 Energy 125/125 System Corruption 0% Temperature Cool (0) Movement Rolling (200) Ox8 Location -9/Materials Parts ------- > --- POWER (1) -------- Light Ion Engine > --- PROPULSION (4) --- Wheel > --- UTILITY (2) ------ Heat Sink Huge Storage Unit > --- WEAPON (2) ------- Assault Rifle EMP Blaster > --- INVENTORY (25) --- Hacking Suite Medium Laser Small Laser Light Assault Rifle EMP Blaster EMP Blaster EMP Blaster Peak State ------------ > --- POWER ------------ Ion Engine > --- PROPULSION ------- Wheel Compact Wheel Compact Wheel > --- UTILITY ---------- Heat Sink Huge Storage Unit > --- WEAPON ----------- Assault Rifle Light Assault Rifle > --- INVENTORY -------- Light Ion Engine Hacking Suite Medium Laser Small Laser EMP Blaster EMP Blaster EMP Blaster EMP Blaster [Rating: 9] Favorites ----------- Power Ion Engine Engine Ion Engine Propulsion Compact Wheel Wheel Compact Wheel Utility Heat Sink Device Heat Sink Storage Huge Storage Unit Weapon Light Assault Rifle Energy Gun EM Pulse Gun Ballistic Gun Light Assault Rifle Launcher EMP Blaster Build | -11 -10 -9 ------- Run | Yrd Mat Mat Slots Evolved 2 | . . 2 Power . | . . . Propulsion 2 | . . 2 Utility . | . . . Weapon . | . . . Parts Attached 13 | 7 3 3 Power 2 | 1 . 1 Engine 2 | 1 . 1 Core . | . . . Reactor . | . . . Propulsion 4 | 3 . 1 Treads . | . . . Leg . | . . . Wheel 4 | 3 . 1 Hover . | . . . Flight . | . . . Utility 3 | 1 2 . Device 1 | . 1 . Storage 2 | 1 1 . Processor . | . . . Hackware . | . . . Protection . | . . . Artifact . | . . . Weapon 4 | 2 1 1 Energy Gun 1 | 1 . . Energy Cannon . | . . . Ballistic Gun 2 | 1 1 . Ballistic Cannon . | . . . Launcher 1 | . . 1 Special Weapon . | . . . Impact Weapon . | . . . Slashing Weapon . | . . . Piercing Weapon . | . . . Special Melee Weapon . | . . . Unidentified Prototypes . | . . . Parts Lost 4 | . 1 3 Power 1 | . . 1 Propulsion 2 | . . 2 Utility . | . . . Weapon 1 | . 1 . Highest Loss Streak 2 | . 1 2 To Critical Strikes . | . . . Average Slot Usage (%) 89 | . 96 77 Engine 11 | . 14 6 Wheel 27 | . 28 27 Device 10 | . 10 11 Storage 12 | . 14 11 Energy Gun 1 | . 2 . Ballistic Gun 23 | . 25 19 Launcher 1 | . . 2 Peak Build Rating 9 | 6 8 9 Average Rating 7 | 5 6 8 On Entrance 4 | . 6 8 Naked Turns . | . . . Heaviest Build 90 | 13 89 90 Greatest Support 42 | 32 32 42 Greatest Overweight (x) 3 | . 2 3 Average Overweight (x) 1 | . 1 2 Largest Inventory Capacity 25 | 8 25 25 Average Capacity 19 | 7 19 25 Most Carried 9 | 3 9 8 Average Carried 4 | 1 3 7 Final Capacity 25 | 8 25 25 Final Carried 9 | 3 9 7 Class Distribution -------------------- 100% | Mutant Dominant Class ---------------- Mutant | -10/Materials Mutant | -9/Materials Resources | -11 -10 -9 ----------- Run | Yrd Mat Mat Matter Collected 335 | 275 60 . Remotely . | . . . Salvage Created 239 | 81 108 50 Parts 14 | 2 10 2 Haulers Intercepted . | . . . Recyclers Shooed . | . . . Parts Field Recycled . | . . . Retrieved Matter . | . . . Parts Self-Destructed . | . . . Prevented . | . . . Kills | -11 -10 -9 ------- Run | Yrd Mat Mat Combat Hostiles Destroyed 5 | . 4 1 Guns 5 | . 4 1 Classes Destroyed 5 | 1 3 1 Recycler 1 | 1 . . Operator 1 | . 1 . Swarmer 3 | . 3 . Grunt 1 | . 1 . Sentry 1 | . . 1 Best Kill Streak 3 | 1 3 1 Combat Bots Only 3 | . 3 1 Max Kills in Single Turn 1 | 1 1 1 Gunslinging . | . . . Exploded . | . . . Melee . | . . . Uniques/NPCs Destroyed . | . . . Combat | -11 -10 -9 -------- Run | Yrd Mat Mat Hostile Shots Fired 60 | . 20 40 Missed 16 | . 3 13 Damage Taken 560 | . 205 355 Core 150 | . 44 106 Absorbed by Shields . | . . . Core Remaining (%) 91 | 100 82 . Volleys Fired 30 | 5 16 9 Largest 2 | 2 2 2 Hottest 60 | 60 60 53 Shots Fired 59 | 10 31 18 Gun 56 | 10 31 15 Cannon . | . . . Launcher 3 | . . 3 Special . | . . . Kinetic 45 | 5 25 15 Thermal . | . . . Explosive . | . . . Electromagnetic 14 | 5 6 3 Robot Hit Streak 13 | 5 12 13 Robot Miss Streak 4 | 4 4 1 Penetration Max . | . . . Secondary Targets . | . . . Shots Hit Robots 38 | 5 19 14 Core Hits 16 | 2 9 5 Critical Kills . | . . . Critical Parts Destroyed . | . . . Critical Strikes . | . . . Melee Attacks . | . . . Impact . | . . . Slashing . | . . . Piercing . | . . . Sneak Attacks . | . . . Combat Hostiles . | . . . Follow-up Attacks . | . . . Damage Inflicted 479 | 53 215 211 Guns 415 | 53 215 147 Cannons . | . . . Explosions 64 | . . 64 Melee . | . . . Ramming . | . . . Kinetic 323 | 15 161 147 Thermal . | . . . Explosive . | . . . Electromagnetic 156 | 38 54 64 Impact . | . . . Slashing . | . . . Piercing . | . . . Highest Corruption 4 | . 4 . Average Corruption 3 | . 3 . Corruption Purged . | . . . Corruption Blocked . | . . . Overload Shots . | . . . Overflow Damage . | . . . Projectiles . | . . . Explosions . | . . . Melee . | . . . Knockbacks . | . . . Impact . | . . . Kinetic . | . . . Secondary . | . . . Self-Inflicted Damage . | . . . Shots . | . . . Rammed . | . . . Targets Rammed . | . . . Kicked . | . . . Crushed . | . . . Highest Temperature 101 | 20 101 . Average Temperature 38 | 15 48 . Received Heat Transfer 234 | . 90 144 Siege Activations . | . . . Robots Corrupted . | . . . Combat Hostiles . | . . . Parts Fried . | . . . Impact Corruptions . | . . . Robots Melted . | . . . Combat Hostiles . | . . . Parts Melted . | . . . Heat Transferred . | . . . Parts Sabotaged . | . . . Parts Stolen . | . . . Parts Stripped . | . . . Power Chain Reactions . | . . . Alert | -11 -10 -9 ------- Run | Yrd Mat Mat Peak Influence 115 | 5 115 88 Initial 3 | . 3 3 Average 25 | 1 29 28 Maximum Alert Level . | . . . Low Security (%) 100 | 100 100 100 Level 1 . | . . . Level 2 . | . . . Level 3 . | . . . Level 4 . | . . . Level 5 . | . . . High Security . | . . . Max Security . | . . . Squads Dispatched 3 | . 3 . Investigation 1 | . 1 . Extermination . | . . . Reinforcement 2 | . 2 . Assault . | . . . Garrison . | . . . Intercept . | . . . Searches Triggered . | . . . Construction Impeded . | . . . Haulers Reinforced . | . . . Active Scanning Responses . | . . . Cargo Convoy Interrupts . | . . . Stealth | -11 -10 -9 --------- Run | Yrd Mat Mat Distress Signals . | . . . Communications Jammed . | . . . Distress Signals . | . . . Times Spotted 20 | . 8 12 Peak Tracking Total 11 | . 3 11 Tactical Retreats 1 | . . 1 Traps | -11 -10 -9 ------- Run | Yrd Mat Mat Traps Triggered 3 | . 3 . Indirectly . | . . . Trap Hack Attempts . | . . . Triggered . | . . . Disarmed . | . . . Reprogrammed . | . . . Reused . | . . . Traps Extracted . | . . . Installed . | . . . Triggered . | . . . Machines | -11 -10 -9 ---------- Run | Yrd Mat Mat Machines Disabled 1 | . . 1 Max in Single Turn 1 | . . 1 Machines Repaired . | . . . Machines Dismantled . | . . . Machines Sabotaged . | . . . Overloaded Fab Kills . | . . . Hacking | -11 -10 -9 --------- Run | Yrd Mat Mat Machines Accessed 5 | . 4 1 Terminals 4 | . 3 1 Fabricators . | . . . Repair Stations . | . . . Recycling Units 1 | . 1 . Scanalyzers . | . . . Garrison Access . | . . . Total Hacks 15 | . 11 4 Successful 6 | . 5 1 Failed 9 | . 6 3 Catastrophic . | . . . Database Lockouts . | . . . Manual 13 | . 9 4 Terminals 13 | . 9 4 Fabricators . | . . . Repair Stations . | . . . Recycling Units 2 | . 2 . Scanalyzers . | . . . Garrison Access . | . . . Terminal Hacks 2 | . 2 . Branch Access Points 1 | . 1 . Unreport Threat 1 | . 1 . Fabricator Hacks . | . . . Repair Station Hacks . | . . . Recycling Unit Hacks 1 | . 1 . Retrieve Components 1 | . 1 . Scanalyzer . | . . . Garrison Access Hacks . | . . . Unauthorized Hacks 3 | . 2 1 Terminals 3 | . 2 1 Botnet 3 | . 2 1 Fabricators . | . . . Repair Stations . | . . . Recycling Units . | . . . Scanalyzers . | . . . Garrison Access . | . . . Data Cores Recovered . | . . . Used . | . . . Hacking Detections 4 | . 3 1 Full Trace Events . | . . . Feedback Events . | . . . Feedback Blocked . | . . . Robot Schematics Acquired . | . . . Robots Built . | . . . Authchips . | . . . Time . | . . . Total Robot Build Rating . | . . . Part Schematics Acquired . | . . . Parts Built . | . . . Authchips . | . . . Time . | . . . Total Part Build Rating . | . . . Parts Repaired . | . . . Time . | . . . Parts Recycled . | . . . Recycled Matter . | . . . Retrieved Matter . | . . . Retrieved Components 2 | . 2 . Parts Scanalyzed . | . . . Part Schematics Acquired . | . . . Parts Damaged . | . . . Bothacking | -11 -10 -9 ------------ Run | Yrd Mat Mat Used RIF Installer . | . . . Robots Hacked . | . . . Non-combat . | . . . Combat . | . . . Robot Hacks Applied . | . . . Relay Couplers Released . | . . . Fabnet Peak Effective % . | . . . Robots Rewired . | . . . Allies Hacked . | . . . Hacks Repelled . | . . . Allies | -11 -10 -9 -------- Run | Yrd Mat Mat Total Allies . | . . . Largest Group . | . . . Highest-Rated Group . | . . . Highest-Rated Ally . | . . . Total Orders . | . . . Ally Attacks . | . . . Total Damage . | . . . Kills . | . . . Allies Corrupted . | . . . Allies Melted . | . . . Intel | -11 -10 -9 ------- Run | Yrd Mat Mat Robot Analysis Total . | . . . Derelict Logs Recovered . | . . . Drone Launches . | . . . Drone Recoveries . | . . . Exploration | -11 -10 -9 ------------- Run | Yrd Mat Mat Turns Passed 489 | 71 273 145 Spaces Moved 299 | 48 166 85 Core 5 | 5 . . Treads . | . . . Legs . | . . . Wheels 294 | 43 166 85 Hover . | . . . Flight . | . . . Fastest Speed 50 | 50 100 108 Average Speed 117 | 92 120 125 Slowest Speed 135 | 100 130 135 Overloaded Moves . | . . . Propulsion Burnouts . | . . . Robots Hopped . | . . . Cave-ins Triggered . | . . . Exploration Rate (%) 18 | 3 40 13 Regions Visited 2 Branch Regions . Pre-discovered Areas . | . . . Known Exits Taken . | . . . Unknown Exits Taken 2 | 1 1 . Scrap Searched . | . . . Spaces Dug . | . . . Terrain Destroyed . | . . . Melee . | . . . Projectile . | . . . AOE . | . . . Terrain Rammed . | . . . Walls Destroyed . | . . . Machines Disabled . | . . . Actions | -11 -10 -9 --------- Run | Yrd Mat Mat Total 378 | 62 211 105 Wait 26 | . 18 8 Move 297 | 47 165 85 Hop . | . . . Pick Up 11 | 3 8 . Fast Attach 6 | 6 . . Attach 4 | . 2 2 Detach . | . . . Swap 3 | 1 1 1 Drop 1 | . 1 . Fire 30 | 5 16 9 Melee . | . . . Ram . | . . . Kick . | . . . Crush . | . . . Escape Stasis . | . . . Rewire . | . . . Trap . | . . . Miscellaneous . | . . . Route ------- -11/Scrapyard -10/Materials (discovered 2 exits: *Mat / Min) -9/Materials History --------- Turn | Location | Event 19 | -11/Scrapyard | Discovered new exit (range 14) 72 | -11/Scrapyard | Entered Materials 258 | -10/Materials | Identified exit to Mines 295 | -10/Materials | Discovered new exit (range 16) 300 | -10/Materials | Build established: Mutant 345 | -10/Materials | Entered another Materials area 345 | -9/Materials | Evolved 2 slots: Propulsion x2 490 | -9/Materials | Self-destructed Last Messages --------------- Current location identified: Materials >>Trojan(Botnet) Trojan loaded successfully. Testing... Terminal linked with 0 systems. Awaiting botnet instructions. Destroyed Heat Sink. Ion Engine destroyed. Y-45 Defender destroyed. K-01 Serf collects debris. Com. Wheel destroyed. K-01 Serf collects debris. K-01 Serf destroyed. K-01 Serf collects debris. K-01 Serf destroyed. Door malfunctions. Terminal disabled. Critical hit (Burn: +37). Door malfunctions. Com. Wheel destroyed. Map ----- +----------------------------------------------------+ | | | | | | | | | | | | | | | | | | | | | | | | | | | | | | | | | | | | | | | | | | | ?????????????????????????????????????????????????? | | ?????????????????????????????????????????????????? | | ??????????????????????????#####??????????????????? | | ?????????????????########## ######?????????????? | | ?????????? s s @ sss ??????? | | ?????????????????########## ######?????????????? | | ??????????????????????????## ##??????????????????? | | ???????????????????????????# #???????????????????? | | ???????????????????????????# #???????????????????? | | ???????????????????????????# #???????????????????? | | ???????????????????????????# #???????????????????? | | ???????????????????????????# #???????????????????? | | ???????????????????????????# #???????????????????? | | ?????????????????????????###/######??????????????? | | ?????????????????????????# #??????????????? | | ?????????????????????????# #??????????????? | | ?????????????????????????# ######?????????? | | ?????????????????????????# ## #?????????? | | ?????????????????????????# ![ / +?????????? | | ?????????????????????????# " ![ ## #?????????? | | ?????????????????????????# ][ ## #?????????? | | ?????????????????????????# ## #?????????? | | ?????????????????????#???# ## #?????????? | | ?????????????????????+ ###/####### ########??? | | ?????????????????????# #??? | | ?????????????????????# #??? | | ?????????????????????# #??? | | ?????????????????????########%! ########### #??? | | ????????????????????????????# #?????????# #??? | +----------------------------------------------------+ Best States ------------- Heat Dissipation 38 Energy Generation 10 Energy Capacity 250 Matter Stores 300 Matter Capacity 300 Sight Range 16 Terrain Scan Density 10 Evasion (%) 40 Item Schematics ----------------- None Robot Schematics ------------------ None Fabricated ------------ Nothing Alien Tech Used ----------------- None Achievements -------------- None Challenges ------------ None Game ------ Seed DamperCobblerNetwork Manual? 0 Play Time 00:05:43 Cumulative 25.5 hours Start 2024.09.01 @ 04:23:58 End 2024.09.01 @ 04:29:10 Sessions 1 Manual Loads 0 Difficulty Rogue Special Mode None Game No. 38 Rogue 38 Adventurer 0 Explorer 0 Win Type - Total 0 Types 0/0/0/0/0/0/0/0/0 Lore% 14 Gallery% 26 Achievement% 25 Wizard Run 0 Options --------- Layout 0 ASCII 0 Keyboard 0 Movement Numpad Keybinds 0 Fullscreen 1 Font 18/Cog Map View 76x50 Zoom Use 0% Tactical HUD 0 Map Filters NONE Filters NONE Steam 1 RUN: fc34c79c-dae6-4a84-8056-d6c74dfc02e0